lending/lending_fUSD_20250210
["ID","MTS","AMOUNT","RATE_DAILY","PERIOD"]
[352646616,1739217043071,-500.0,0.00010958,2]
[352646619,1739217043080,-500.0,0.00010958,2]
[352646621,1739217043090,-819.49,0.00010958,2]
[352646625,1739217043101,-439.14169139,0.00010958,2]
[352646629,1739217043111,-645.83,0.00010958,2]
[352646630,1739217043120,-374.30080364,0.00010958,2]
[352646633,1739217043130,-500.0,0.00010958,2]
[352646638,1739217043140,-1788.99,0.00010958,2]
[352646639,1739217043149,-3308.63,0.00010958,2]
[352646642,1739217043159,-500.0,0.00010958,2]
[352646645,1739217043168,-500.0,0.00010958,2]
[352646648,1739217043178,-500.0,0.00010958,2]
[352646651,1739217043187,-500.0,0.00010958,2]
[352646654,1739217043197,-543.83,0.00010958,2]
[352646657,1739217043206,-500.0,0.00010958,2]
[352646660,1739217043216,-1162.59,0.00010958,2]
[352646663,1739217043225,-1086.68,0.00010958,2]
[352646666,1739217043236,-500.0,0.00010958,2]
[352646669,1739217043245,-500.0,0.00010958,2]
[352646672,1739217043255,-500.0,0.00010958,2]
[352646675,1739217043264,-501.51410658,0.00010958,2]
[352646678,1739217043274,-500.0,0.00010958,2]
[352646681,1739217043284,-500.0,0.00010958,2]
[352646684,1739217043294,-500.0,0.00010958,2]
[352646688,1739217043304,-500.0,0.00010958,2]
[352646692,1739217043315,-1804.05,0.00010958,2]
[352646695,1739217043324,-5188.0,0.00010958,2]
[352646696,1739217043334,-500.0,0.00010958,2]
[352646699,1739217043343,-2392.85,0.00010958,2]
[352646702,1739217043353,-500.0,0.00010958,2]
[352646705,1739217043362,-2313.42,0.00010958,2]
[352646708,1739217043373,-500.0,0.00010958,2]
[352646711,1739217043382,-500.38835627,0.00010958,2]
[352646715,1739217043393,-500.0,0.00010958,2]
[352646719,1739217043404,-553.97375769,0.00010958,2]
[352646722,1739217043414,-749.16,0.00010958,2]
[352646725,1739217043424,-530.87288167,0.00010958,2]
[352646728,1739217043433,-500.0,0.00010958,2]
[352646731,1739217043443,-452.83576256,0.00010958,2]
[352646733,1739217043453,-500.0,0.00010958,2]
[352646735,1739217043463,-500.0,0.00010958,2]
[352646739,1739217043473,-500.0,0.00010958,2]
[352646741,1739217043482,-500.0,0.00010958,2]
[352646745,1739217043494,-500.0,0.00010958,2]
[352646748,1739217043509,-500.0,0.00010958,2]
[352646752,1739217043521,-2419.09,0.00010958,2]
[352646755,1739217043531,-500.0,0.00010958,2]
[352646758,1739217043544,-500.0,0.00010958,2]
[352646761,1739217043554,-1632.19,0.00010958,2]
[352646764,1739217043564,-500.0,0.00010958,2]
[352646767,1739217043574,-766.68,0.00010958,2]
[352646770,1739217043589,-500.0,0.00010958,2]
[352646773,1739217043599,-500.0,0.00010958,2]
[352646776,1739217043610,-2781.55,0.00010958,2]
[352646779,1739217043619,-500.0,0.00010958,2]
[352646782,1739217043631,-3815.56,0.00010958,2]
[352646785,1739217043641,-599.54,0.00010958,2]
[352646787,1739217043652,-500.0,0.00010958,2]
[352646789,1739217043662,-702.71,0.00010958,2]
[352646791,1739217043672,-500.0,0.00010958,2]
[352646794,1739217043681,-899.39,0.00010958,2]
[352646797,1739217043690,-502.40463909,0.00010958,2]
[352646800,1739217043701,-1221.97,0.00010958,2]
[352646803,1739217043710,-500.0,0.00010958,2]
[352646806,1739217043720,-500.0,0.00010958,2]
[352646809,1739217043729,-500.0,0.00010958,2]
[352646811,1739217043739,-500.0,0.00010958,2]
[352646814,1739217043751,-500.0,0.00010958,2]
[352646818,1739217043761,-609.96,0.00010958,2]
[352646821,1739217043771,-3066.98,0.00010958,2]
[352646824,1739217043780,-1855.22,0.00010958,2]
[352646827,1739217043790,-500.0,0.00010958,2]
[352646830,1739217043800,-500.0,0.00010958,2]
[352646833,1739217043810,-500.0,0.00010958,2]
[352646836,1739217043819,-500.0,0.00010958,2]
[352646839,1739217043829,-568.31,0.00010958,2]
[352646842,1739217043838,-500.0,0.00010958,2]
[352646845,1739217043848,-501.93359993,0.00010958,2]
[352646848,1739217043857,-500.0,0.00010958,2]
[352646851,1739217043867,-500.0,0.00010958,2]
[352646854,1739217043877,-1154.02,0.00010958,2]
[352646857,1739217043886,-500.0,0.00010958,2]
[352646860,1739217043895,-503.70962885,0.00010958,2]
[352646863,1739217043905,-621.93,0.00010958,2]
[352646866,1739217043914,-500.0,0.00010958,2]
[352646869,1739217043924,-1663.55,0.00010958,2]
[352646872,1739217043933,-516.23254994,0.00010958,2]
[352646875,1739217043943,-1470.96,0.00010958,2]
[352646878,1739217043952,-500.0,0.00010958,2]
[352646881,1739217043962,-500.0,0.00010958,2]
[352646883,1739217043971,-500.0,0.00010958,2]
[352646886,1739217043981,-1448.93,0.00010958,2]
[352646889,1739217043991,-1691.99,0.00010958,2]
[352646893,1739217044003,-673.88,0.00010958,2]
[352646895,1739217044012,-500.0,0.00010958,2]
[352646898,1739217044023,-3129.14,0.00010958,2]
[352646901,1739217044033,-500.0,0.00010958,2]
[352646904,1739217044043,-500.0,0.00010958,2]
[352646907,1739217044053,-500.0,0.00010958,2]
[352646910,1739217044063,-2320.87,0.00010958,2]
[352646915,1739217044073,-500.0,0.00010958,2]
[352646917,1739217044082,-500.0,0.00010958,2]
[352646919,1739217044091,-995.88,0.00010958,2]
[352646922,1739217044101,-500.0,0.00010958,2]
[352646925,1739217044110,-2618.51,0.00010958,2]
[352646927,1739217044120,-500.0,0.00010958,2]
[352646930,1739217044130,-500.0,0.00010958,2]
[352646932,1739217044139,-500.0,0.00010958,2]
[352646933,1739217044149,-500.0,0.00010958,2]
[352646934,1739217044158,-2818.9,0.00010958,2]
[352646935,1739217044167,-500.0,0.00010958,2]
[352646936,1739217044176,-993.55,0.00010958,2]
[352646938,1739217044185,-2748.46,0.00010958,2]
[352646940,1739217044194,-500.0,0.00010958,2]
[352646942,1739217044204,-500.0,0.00010958,2]
[352646944,1739217044214,-500.0,0.00010958,2]
[352646946,1739217044223,-500.0,0.00010958,2]
[352646948,1739217044232,-500.0,0.00010958,2]
[352646949,1739217044241,-652.35,0.00010958,2]
[352646951,1739217044252,-500.0,0.00010958,2]
[352646953,1739217044261,-500.0,0.00010958,2]
[352646955,1739217044271,-500.0,0.00010958,2]
[352646957,1739217044280,-500.0,0.00010958,2]
[352646959,1739217044290,-500.0,0.00010958,2]
[352646961,1739217044299,-500.0,0.00010958,2]
[352646963,1739217044309,-500.0,0.00010958,2]
[352646965,1739217044319,-500.0,0.00010958,2]
[352646967,1739217044328,-1579.61,0.00010958,2]
[352646969,1739217044338,-500.0,0.00010958,2]
[352646971,1739217044348,-500.0,0.00010958,2]
[352646973,1739217044361,-500.0,0.00010958,2]
[352646975,1739217044371,-500.0,0.00010958,2]
[352646977,1739217044381,-500.0,0.00010958,2]
[352646979,1739217044391,-2898.79,0.00010958,2]
[352646981,1739217044401,-712.02,0.00010958,2]
[352646983,1739217044412,-500.0,0.00010958,2]
[352646986,1739217044422,-750.4,0.00010958,2]
[352646987,1739217044431,-3025.96,0.00010958,2]
[352646989,1739217044441,-848.72,0.00010958,2]
[352646991,1739217044451,-608.49,0.00010958,2]
[352646993,1739217044460,-500.0,0.00010958,2]
[352646995,1739217044470,-500.0,0.00010958,2]
[352646997,1739217044480,-500.0,0.00010958,2]
[352646999,1739217044490,-500.0,0.00010958,2]
[352647002,1739217044503,-500.0,0.00010958,2]
[352647004,1739217044513,-1361.68,0.00010958,2]
[352647005,1739217044523,-500.0,0.00010958,2]
[352647007,1739217044532,-500.0,0.00010958,2]
[352647010,1739217044544,-513.11171233,0.00010958,2]
[352647011,1739217044553,-501.11487766,0.00010958,2]
[352647014,1739217044563,-500.0,0.00010958,2]
[352647015,1739217044572,-500.0,0.00010958,2]
[352647018,1739217044582,-500.0,0.00010958,2]
[352647020,1739217044592,-500.0,0.00010958,2]
[352647022,1739217044602,-1503.79,0.00010958,2]
[352647023,1739217044612,-500.0,0.00010959,2]
[352647025,1739217044624,-500.0,0.00010959,2]
[352647028,1739217044635,-200.0,0.00010959,2]
[352647030,1739217044645,-151.0,0.00010959,2]
[352647031,1739217044654,-151.0,0.00010959,2]
[352647033,1739217044663,-500.0,0.00010973,2]
[352647035,1739217044673,-500.0,0.00010973,2]
[352647037,1739217044682,-159.56684242,0.00010973,2]
[352647039,1739217044692,-160.43243795,0.00010973,2]
[352647042,1739217044701,-160.30253938,0.00010973,2]
[352647043,1739217044712,-151.38906058,0.00010973,2]
[352647045,1739217044721,-473.38400369,0.00010973,2]
[352647048,1739217044731,-151.26948445,0.00010973,2]
[352647049,1739217044740,-152.38864132,0.00010973,2]
[352647051,1739217044751,-170.29723242,0.00010973,2]
[352647054,1739217044760,-500.0,0.00010973,2]
[352647056,1739217044770,-6549.3746082,0.00010988,2]
[352647058,1739217044780,-12318.5989787,0.00010988,2]
[352647060,1739217044789,-547.38781951,0.00010989,2]
[352647061,1739217044799,-5725.4499934,0.00010991,2]
[352647063,1739217044809,-10768.8942319,0.00010991,2]
[352647066,1739217044819,-4901.5253786,0.00010992,2]
[352647068,1739217044829,-4077.6007638,0.00010992,2]
[352647070,1739217044838,-9219.1894852,0.00010992,2]
[352647072,1739217044848,-7669.4847384,0.00010992,2]
[352647074,1739217044857,-1313.52087338,0.00010996,3]
[352647076,1739217044867,-1313.52087338,0.00010996,3]
[352647078,1739217044876,-151.0,0.00010998,2]
[352647080,1739217044887,-164.484587,0.00010998,2]
[352647082,1739217044897,-2000.0,0.00010998,2]
[352647084,1739217044906,-1884.758225,0.00010999,2]
[352647086,1739217044917,-2000.0,0.00010999,2]
[352647088,1739217044928,-56110.27,0.00010999,2]
[352647090,1739217044938,-151.0,0.00010999,2]
[352647092,1739217044949,-151.0,0.00010999,2]
[352647094,1739217044958,-151.0,0.00010999,2]
[352647096,1739217044968,-178.3149851,0.00010999,3]
[352647098,1739217044978,-833.97954067,0.00010999,2]
[352647100,1739217044988,-2119112.1056962,0.00011,2]
[352647148,1739217045453,-1641849.17928,0.00011,2]
[352647151,1739217045465,-1021520.0,0.00011,2]
[352647170,1739217045714,-1199.24,0.00010958,2]
[352647172,1739217045724,-500.0,0.00010958,2]
[352647174,1739217045734,-4199.46911555,0.00011,2]
[352647340,1739217048234,-500.0,0.00010958,2]
[352647341,1739217048251,-500.0,0.00010958,2]
[352647342,1739217048260,-500.0,0.00010958,2]
[352647343,1739217048271,-500.0,0.00010958,2]
[352647344,1739217048281,-500.0,0.00010958,2]
[352647345,1739217048291,-500.0,0.00010958,2]
[352647346,1739217048301,-265.64109941,0.00010958,2]
[352647348,1739217048313,-234.35890059,0.00010958,2]
[352647350,1739217048324,-500.0,0.00010958,2]
[352647352,1739217048334,-18491.64109941,0.00010999,3]
[352647354,1739217048345,-1925.45,0.00010999,3]
[352647358,1739217048378,-7818.75657741,0.00010999,3]
[352647360,1739217048390,-4897.92186904,0.00010999,3]
[352647362,1739217048402,-864.15652629,0.00010999,3]
[352647364,1739217048414,-1459.44,0.00010999,3]
[352647366,1739217048426,-10056.12500296,0.00010999,3]
[352647369,1739217048438,-498.014838,0.00010999,3]
[352647371,1739217048450,-46346.80758099,0.00010999,3]
[352647373,1739217048462,-475.76053542,0.00010999,3]
[352647384,1739217048575,-4960.58407607,0.00010999,3]
[352647387,1739217048597,-2631.77610288,0.00010999,3]
[352647389,1739217048608,-236467.67955987,0.00010999,3]
[352647391,1739217048622,-286.88553038,0.00010999,3]
[352647394,1739217048634,-358.33485164,0.00010999,3]
[352647396,1739217048647,-6258.6159608,0.00010999,3]
[352647400,1739217048672,-21036.98418125,0.00010999,3]
[352647402,1739217048685,-48667.11342702,0.00010999,3]
[352647469,1739217049394,-500.0,0.00010958,2]
[352647471,1739217049404,-85.288,0.00010958,2]
[352647474,1739217049417,-262.6439895,0.00010958,2]
[352647476,1739217049431,-152.0680105,0.00010958,2]
[352647478,1739217049442,-251.9319895,0.00010958,2]
[352647503,1739217049759,-248.0680105,0.00010958,2]
[352647505,1739217049768,-500.0,0.00010958,2]
[352647507,1739217049778,-500.0,0.00010958,2]
[352647509,1739217049787,-697.05796829,0.00010999,3]
[352647511,1739217049799,-579.14783091,0.00010999,3]
[352647513,1739217049811,-4332.830364,0.00010999,3]
[352647515,1739217049826,-546.22216562,0.00010999,3]
[352647518,1739217049838,-629.14411787,0.00010999,3]
[352647520,1739217049850,-119239.62066038,0.00010999,3]
[352647527,1739217049912,-526.75623053,0.00010999,3]
[352647529,1739217049924,-376.42012793,0.00010999,3]
[352647531,1739217049937,-22937.63762943,0.00010999,3]
[352647533,1739217049949,-388.86363569,0.00010999,3]
[352647536,1739217049961,-23434.43829656,0.00010999,3]
[352647543,1739217050031,-55234.53635782,0.00010999,3]
[352647546,1739217050042,-77667.60002963,0.00010999,3]
[352647548,1739217050054,-342.32093239,0.00010999,3]
[352647550,1739217050066,-3373.29013813,0.00010999,3]
[352647615,1739217050705,-500.0,0.00010958,2]
[352647617,1739217050715,-500.0,0.00010958,2]
[352647619,1739217050725,-500.0,0.00010958,2]
[352647621,1739217050734,-500.0,0.00010958,2]
[352647623,1739217050743,-499.88,0.00010958,2]
[352647625,1739217050752,-46121.87446194,0.00010999,3]
[352647628,1739217050763,-403.92485244,0.00010999,3]
[352647631,1739217050790,-500.0,0.00010958,2]
[352647633,1739217050799,-500.0,0.00010958,2]
[352647635,1739217050808,-16921.31081401,0.00010999,3]
[352647637,1739217050820,-1935.895,0.00010999,3]
[352647640,1739217050831,-6414.789155,0.00010999,3]
[352647645,1739217050924,-500.0,0.00010958,2]
[352647646,1739217050933,-4231140.52296376,0.00010999,3]
[352647648,1739217050943,-1612.0,0.00011,2]
[352647650,1739217050953,-4666312.0738928,0.00011,2]
[352647652,1739217050963,-380652.96,0.00011,2]
[352647654,1739217050972,-500.0,0.00011,2]
[352647656,1739217050982,-500.0,0.00011,2]
[352647658,1739217050992,-500.0,0.00011,2]
[352647660,1739217051001,-500.0,0.00011,2]
[352647662,1739217051013,-500.0,0.00011,2]
[352647664,1739217051022,-500.0,0.00011,2]
[352647666,1739217051031,-500.0,0.00011,2]
[352647668,1739217051041,-500.0,0.00011,2]
[352647670,1739217051050,-3503495.84,0.00011,2]
[352647671,1739217051059,-500.0,0.00011,2]
[352647674,1739217051070,-161.383737,0.00011,2]
[352647676,1739217051080,-161.383737,0.00011,2]
[352647678,1739217051090,-161.383737,0.00011,2]
[352647680,1739217051099,-161.383737,0.00011,2]
[352647682,1739217051107,-151.0,0.00011,2]
[352647684,1739217051116,-151.0,0.00011,2]
[352647686,1739217051126,-151.0,0.00011,2]
[352647688,1739217051136,-151.0,0.00011,2]
[352647690,1739217051145,-151.0,0.00011,2]
[352647692,1739217051154,-151.0,0.00011,2]
[352647694,1739217051163,-151.0,0.00011,2]
[352647696,1739217051173,-151.0,0.00011,2]
[352647698,1739217051182,-151.0,0.00011,2]
[352647700,1739217051191,-151.0,0.00011,2]
[352647702,1739217051201,-228.231881,0.00011,2]
[352647704,1739217051210,-151.0,0.00011,2]
[352647705,1739217051219,-151.0,0.00011,2]
[352647707,1739217051229,-220.961458,0.00011,2]
[352647709,1739217051238,-151.0,0.00011,2]
[352647711,1739217051248,-151.0,0.00011,2]
[352647713,1739217051259,-151.0,0.00011,2]
[352647715,1739217051268,-151.0,0.00011,2]
[352647717,1739217051277,-500.0,0.00011016,2]
[352647719,1739217051286,-2024.0,0.0001107,2]
[352647721,1739217051295,-151.882,0.0001107,2]
[352647723,1739217051304,-1273.0,0.0001107,2]
[352647725,1739217051314,-199.0,0.0001107,2]
[352647727,1739217051323,-639.597,0.0001107,2]
[352647729,1739217051332,-571.032,0.0001107,2]
[352647731,1739217051341,-1827.0,0.0001107,2]
[352647733,1739217051351,-2955.0,0.0001107,2]
[352647735,1739217051361,-783.0,0.0001107,2]
[352647737,1739217051370,-907.0,0.0001107,2]
[352647739,1739217051380,-1265.0,0.0001107,2]
[352647741,1739217051390,-4025.0,0.0001107,2]
[352647743,1739217051400,-539.0,0.0001107,2]
[352647745,1739217051410,-248.752,0.0001107,2]
[352647747,1739217051419,-1009.673,0.0001107,2]
[352647749,1739217051429,-3914.0,0.0001107,2]
[352647751,1739217051438,-250.0,0.0001107,2]
[352647753,1739217051448,-1109.0,0.0001107,2]
[352647755,1739217051457,-150.0,0.0001107,2]
[352647757,1739217051466,-161.383737,0.00011095,2]
[352647759,1739217051476,-161.383737,0.00011095,2]
[352647761,1739217051485,-151.0,0.00011095,2]
[352647763,1739217051495,-641.621339,0.00011095,2]
[352647765,1739217051506,-563.348585,0.00011095,2]
[352647767,1739217051516,-151.0,0.00011095,2]
[352647770,1739217051526,-151.0,0.00011095,2]
[352647772,1739217051536,-500.0,0.00011095,2]
[352647774,1739217051548,-500.0,0.00011095,2]
[352647775,1739217051557,-500.0,0.00011095,2]
[352647777,1739217051567,-500.0,0.00011095,2]
[352647780,1739217051578,-500.0,0.00011095,2]
[352647782,1739217051588,-500.0,0.00011095,2]
[352647784,1739217051597,-500.0,0.00011095,2]
[352647786,1739217051607,-500.0,0.00011095,2]
[352647788,1739217051616,-500.0,0.00011095,2]
[352647790,1739217051628,-500.0,0.00011095,2]
[352647792,1739217051638,-500.0,0.00011095,2]
[352647794,1739217051647,-543.84231312,0.00011095,2]
[352647796,1739217051656,-500.0,0.00011095,2]
[352647797,1739217051665,-500.0,0.00011095,2]
[352647799,1739217051675,-589.96009486,0.00011095,2]
[352647801,1739217051684,-500.0,0.00011095,2]
[352647803,1739217051693,-500.0,0.00011095,2]
[352647805,1739217051702,-500.0,0.00011095,2]
[352647807,1739217051711,-500.0,0.00011095,2]
[352647809,1739217051720,-500.0,0.00011095,2]
[352647811,1739217051729,-500.0,0.00011095,2]
[352647813,1739217051738,-500.0,0.00011095,2]
[352647815,1739217051747,-500.0,0.00011095,2]
[352647817,1739217051756,-500.0,0.00011095,2]
[352647819,1739217051765,-500.0,0.00011095,2]
[352647821,1739217051775,-500.0,0.00011095,2]
[352647823,1739217051784,-500.0,0.00011095,2]
[352647825,1739217051794,-500.0,0.00011095,2]
[352647827,1739217051803,-523.95496061,0.00011095,2]
[352647829,1739217051812,-645.15086186,0.00011095,2]
[352647831,1739217051821,-500.0,0.00011095,2]
[352647833,1739217051831,-500.0,0.00011095,2]
[352647835,1739217051841,-500.0,0.00011095,2]
[352647837,1739217051850,-500.0,0.00011095,2]
[352647839,1739217051859,-500.0,0.00011095,2]
[352647841,1739217051869,-500.0,0.00011095,2]
[352647843,1739217051879,-500.0,0.00011095,2]
[352647845,1739217051888,-500.0,0.00011095,2]
[352647847,1739217051898,-500.0,0.00011095,2]
[352647849,1739217051909,-541.12,0.00011095,2]
[352647851,1739217051918,-500.0,0.00011095,2]
[352647853,1739217051927,-500.0,0.00011095,2]
[352647855,1739217051937,-500.0,0.00011095,2]
[352647857,1739217051946,-597.05,0.00011095,2]
[352647859,1739217051956,-501.83716352,0.00011095,2]
[352647861,1739217051965,-500.0,0.00011095,2]
[352647862,1739217051975,-500.0,0.00011095,2]
[352647863,1739217051984,-500.0,0.00011095,2]
[352647864,1739217051993,-500.0,0.00011095,2]
[352647865,1739217052003,-500.0,0.00011095,2]
[352647866,1739217052013,-500.0,0.00011095,2]
[352647867,1739217052022,-500.0,0.00011095,2]
[352647886,1739217052195,-500.0,0.00011095,2]
[352647888,1739217052206,-500.0,0.00011095,2]
[352647890,1739217052215,-500.0,0.00011095,2]
[352647892,1739217052224,-500.9487653,0.00011095,2]
[352647894,1739217052234,-500.0,0.00011095,2]
[352647896,1739217052244,-500.0,0.00011095,2]
[352647898,1739217052253,-500.0,0.00011095,2]
[352647900,1739217052263,-500.0,0.00011095,2]
[352647902,1739217052274,-500.0,0.00011095,2]
[352647905,1739217052283,-502.57,0.00011095,2]
[352647906,1739217052292,-500.0,0.00011095,2]
[352647908,1739217052301,-500.0,0.00011095,2]
[352647910,1739217052311,-500.0,0.00011095,2]
[352647912,1739217052320,-500.0,0.00011095,2]
[352647914,1739217052329,-500.0,0.00011095,2]
[352647916,1739217052339,-604.26,0.00011095,2]
[352647918,1739217052348,-500.0,0.00011095,2]
[352647920,1739217052358,-500.0,0.00011095,2]
[352647922,1739217052367,-500.0,0.00011095,2]
[352647924,1739217052376,-500.0,0.00011095,2]
[352647926,1739217052387,-500.0,0.00011095,2]
[352647928,1739217052400,-500.0,0.00011095,2]
[352647931,1739217052410,-500.0,0.00011095,2]
[352647933,1739217052420,-500.0,0.00011095,2]
[352647934,1739217052430,-508.15097911,0.00011095,2]
[352647937,1739217052439,-500.0,0.00011095,2]
[352647939,1739217052449,-500.0,0.00011095,2]
[352647941,1739217052458,-531.44,0.00011095,2]
[352647943,1739217052468,-500.0,0.00011095,2]
[352647945,1739217052478,-500.0,0.00011095,2]
[352647947,1739217052487,-500.0,0.00011095,2]
[352647949,1739217052497,-500.0,0.00011095,2]
[352647950,1739217052506,-500.0,0.00011095,2]
[352647952,1739217052515,-500.0,0.00011095,2]
[352647953,1739217052524,-500.0,0.00011095,2]
[352647955,1739217052533,-500.0,0.00011095,2]
[352647956,1739217052543,-810.48,0.00011095,2]
[352647958,1739217052554,-500.0,0.00011095,2]
[352647959,1739217052563,-500.0,0.00011095,2]
[352647961,1739217052572,-500.0,0.00011095,2]
[352647962,1739217052582,-500.0,0.00011095,2]
[352647964,1739217052591,-397.45152214,0.00011095,2]
[352647965,1739217052602,-500.0,0.00011095,2]
[352647967,1739217052611,-500.0,0.00011095,2]
[352647969,1739217052622,-500.0,0.00011095,2]
[352647970,1739217052632,-500.0,0.00011095,2]
[352647972,1739217052641,-500.0,0.00011095,2]
[352647974,1739217052651,-500.0,0.00011095,2]
[352647975,1739217052662,-500.0,0.00011095,2]
[352647977,1739217052671,-500.0,0.00011095,2]
[352647978,1739217052681,-512.43,0.00011095,2]
[352647980,1739217052690,-500.0,0.00011095,2]
[352647981,1739217052699,-500.0,0.00011095,2]
[352647983,1739217052708,-609.09,0.00011095,2]
[352647984,1739217052717,-500.0,0.00011095,2]
[352647986,1739217052726,-500.0,0.00011095,2]
[352647987,1739217052735,-500.0,0.00011095,2]
[352647989,1739217052745,-500.0,0.00011095,2]
[352647991,1739217052754,-500.0,0.00011095,2]
[352647992,1739217052768,-745.2,0.00011095,2]
[352647994,1739217052779,-500.0,0.00011095,2]
[352647996,1739217052793,-500.0,0.00011095,2]
[352647998,1739217052802,-500.0,0.00011095,2]
[352647999,1739217052811,-500.0,0.00011095,2]
[352648001,1739217052820,-820.08,0.00011095,2]
[352648003,1739217052829,-500.0,0.00011095,2]
[352648004,1739217052838,-500.0,0.00011095,2]
[352648006,1739217052848,-500.0,0.00011095,2]
[352648007,1739217052857,-500.0,0.00011095,2]
[352648009,1739217052867,-500.0,0.00011095,2]
[352648011,1739217052876,-1862.78,0.00011095,2]
[352648012,1739217052885,-508.04648319,0.00011095,2]
[352648014,1739217052895,-500.0,0.00011095,2]
[352648016,1739217052905,-500.0,0.00011095,2]
[352648017,1739217052914,-991.22,0.00011095,2]
[352648019,1739217052923,-500.0,0.00011095,2]
[352648021,1739217052932,-500.0,0.00011095,2]
[352648022,1739217052941,-500.0,0.00011095,2]
[352648024,1739217052951,-500.0,0.00011095,2]
[352648026,1739217052960,-951.4,0.00011095,2]
[352648027,1739217052970,-874.12,0.00011095,2]
[352648029,1739217052979,-591.78,0.00011095,2]
[352648030,1739217052988,-1448.37,0.00011095,2]
[352648032,1739217052998,-500.0,0.00011095,2]
[352648034,1739217053008,-572.87,0.00011095,2]
[352648035,1739217053017,-1014.74,0.00011095,2]
[352648037,1739217053027,-500.0,0.00011095,2]
[352648039,1739217053037,-1242.07,0.00011095,2]
[352648040,1739217053046,-500.0,0.00011095,2]
[352648042,1739217053056,-500.0,0.00011095,2]
[352648044,1739217053065,-589.74,0.00011095,2]
[352648045,1739217053074,-500.0,0.00011095,2]
[352648047,1739217053083,-500.0,0.00011095,2]
[352648049,1739217053092,-500.0,0.00011095,2]
[352648050,1739217053102,-500.0,0.00011095,2]
[352648052,1739217053111,-500.0,0.00011095,2]
[352648053,1739217053120,-500.0,0.00011095,2]
[352648055,1739217053129,-500.0,0.00011095,2]
[352648057,1739217053138,-500.0,0.00011095,2]
[352648058,1739217053148,-500.0,0.00011095,2]
[352648060,1739217053158,-549.56,0.00011095,2]
[352648062,1739217053167,-682.19,0.00011095,2]
[352648063,1739217053176,-500.0,0.00011095,2]
[352648065,1739217053186,-500.0,0.00011095,2]
[352648067,1739217053195,-504.95141403,0.00011095,2]
[352648068,1739217053204,-628.64,0.00011095,2]
[352648070,1739217053214,-500.0,0.00011095,2]
[352648072,1739217053223,-500.0,0.00011095,2]
[352648073,1739217053232,-500.0,0.00011095,2]
[352648075,1739217053242,-500.0,0.00011095,2]
[352648077,1739217053251,-500.0,0.00011095,2]
[352648078,1739217053261,-500.0,0.00011095,2]
[352648079,1739217053270,-910.68,0.00011095,2]
[352648080,1739217053279,-718.31,0.00011095,2]
[352648081,1739217053288,-1094.62,0.00011095,2]
[352648082,1739217053297,-500.0,0.00011095,2]
[352648083,1739217053306,-758.66,0.00011095,2]
[352648084,1739217053315,-500.0,0.00011095,2]
[352648085,1739217053324,-846.94,0.00011095,2]
[352648086,1739217053333,-500.0,0.00011095,2]
[352648087,1739217053342,-923.59,0.00011095,2]
[352648088,1739217053351,-500.0,0.00011095,2]
[352648090,1739217053361,-500.0,0.00011095,2]